bitfinex-derivatives/quotes_SOLF0:USTF0_20250428
["timestamp","ask_amount","ask_price","bid_price","bid_amount"]
[1745882810572,31.0725,147.85,147.81,6.7637]
[1745882810969,6.7627,147.84,147.77,27.094]
[1745882811165,6.7627,147.84,147.8,6.7639]
[1745882811673,6.7628,147.83,147.8,6.7639]
[1745882815979,9.38960913,147.84,147.77,27.094]
[1745882816181,9.38960913,147.84,147.77,25.02]
[1745882816678,9.38960913,147.84,147.77,31.7853]
[1745882817375,6.7642,147.8,147.77,31.7853]
[1745882817576,9.38960913,147.84,147.78,6.765]
[1745882817977,9.38960913,147.84,147.77,25.02]
[1745882818188,9.38960913,147.84,147.79,6.7643]
[1745882818779,6.7636,147.82,147.79,6.7643]
[1745882818980,9.38960913,147.84,147.78,6.7649]
[1745882819377,6.7637,147.82,147.77,25.02]
[1745882819578,6.7637,147.82,147.79,6.7646]
[1745882820583,6.7629,147.83,147.8,6.7641]
[1745882822485,6.7633,147.82,147.79,6.7644]
[1745882822984,9.38960913,147.84,147.77,25.02]
[1745882823284,6.7629,147.83,147.77,25.02]
[1745882823988,6.7629,147.83,147.8,6.7641]
[1745882825088,6.7633,147.82,147.79,6.7644]
[1745882825785,6.763,147.83,147.79,6.7644]
[1745882826291,6.7632,147.82,147.79,6.7644]
[1745882826991,6.7629,147.83,147.8,6.7641]
[1745882829791,6.7625,147.84,147.81,6.7636]
[1745882830093,9.38960913,147.86,147.78,9.38960913]
[1745882830590,6.7624,147.84,147.81,6.7634]
[1745882832890,9.38960913,147.86,147.77,29.0649]
[1745882833091,9.38960913,147.84,147.77,25.02]
[1745882833490,11.41200913,147.84,147.77,25.02]
[1745882833996,6.7642,147.8,147.77,31.7853]
[1745882834788,6.7639,147.81,147.78,6.765]
[1745882834993,9.38960913,147.82,147.78,6.765]
[1745882835194,9.38960913,147.82,147.77,25.02]
[1745882835397,6.7642,147.8,147.77,31.7852]
[1745882836495,6.7638,147.81,147.78,6.765]
[1745882837494,6.7642,147.8,147.77,31.7853]
[1745882840496,6.7642,147.8,147.77,25.02]
[1745882840701,6.7639,147.81,147.78,6.7651]
[1745882842096,6.7639,147.81,147.79,6.7646]
[1745882842300,16.15300913,147.82,147.79,6.7646]
[1745882844404,6.7637,147.81,147.79,6.7646]
[1745882845207,6.7634,147.82,147.79,6.7646]
[1745882849209,6.7637,147.81,147.79,6.7646]
[1745882851012,6.7637,147.81,147.78,6.7649]
[1745882851310,6.7634,147.82,147.77,25.02]
[1745882851710,6.7634,147.82,147.79,6.7646]
[1745882852110,6.7637,147.81,147.79,6.7646]
[1745882852310,6.7637,147.81,147.78,6.7648]
[1745882854011,6.7637,147.81,147.79,6.7646]
[1745882855610,6.7634,147.82,147.79,6.7646]
[1745882855810,9.38960913,147.82,147.77,25.02]
[1745882856011,6.7646,147.8,147.77,25.02]
[1745882856211,9.38960913,147.82,147.74,24.76]
[1745882856509,9.38960913,147.8,147.74,24.76]
[1745882856811,6.7653,147.78,147.75,6.7662]
[1745882857410,6.7648,147.79,147.75,6.7662]
[1745882858609,6.7648,147.79,147.76,6.766]
[1745882859314,6.7643,147.8,147.77,6.7653]
[1745882859513,9.38960913,147.82,147.74,24.76]
[1745882859813,6.764,147.81,147.78,6.7651]
[1745882865319,24.76,147.83,147.73,15.61790913]
[1745882865320,4.1681,147.85,147.76,9.38960913]
[1745882865520,24.5,147.88,147.8,9.38960913]
[1745882865721,24.5,147.88,147.8,33.88960913]
[1745882867021,31.2607,147.88,147.84,6.762]
[1745882867622,6.7611,147.87,147.84,6.762]
[1745882867821,24.5,147.88,147.84,6.762]
[1745882868221,31.2606,147.88,147.84,6.762]
[1745882868422,24.5,147.88,147.84,6.762]
[1745882869618,31.2609,147.88,147.84,6.762]
[1745882871922,6.761,147.87,147.84,6.762]
[1745882872523,6.761,147.87,147.83,6.7627]
[1745882872718,6.761,147.87,147.8,24.5]
[1745882872719,9.38960913,147.84,147.8,24.5]
[1745882872922,9.38960913,147.84,147.78,24.5]
[1745882873124,16.15240913,147.84,147.79,6.7643]
[1745882873318,9.38960913,147.82,147.79,6.7643]
[1745882873820,16.15290913,147.82,147.78,31.265]
[1745882874121,16.15290913,147.82,147.78,24.5]
[1745882874922,9.38960913,147.82,147.79,6.7646]
[1745882876622,16.15300913,147.82,147.79,6.7646]
[1745882877024,33.88960913,147.84,147.79,6.7646]
[1745882877322,6.7631,147.83,147.79,6.7646]
[1745882878030,6.7634,147.82,147.79,6.7646]
[1745882878928,6.763,147.83,147.8,6.7641]
[1745882879725,40.65210913,147.84,147.8,6.7641]
[1745882880224,40.65210913,147.84,147.78,24.5]
[1745882880225,6.7631,147.83,147.79,6.7644]
[1745882880926,6.7631,147.83,147.8,6.7641]
[1745882881227,9.38960913,147.84,147.78,24.5]
[1745882881428,9.38960913,147.84,147.81,6.7634]
[1745882883129,16.15220913,147.84,147.81,6.7634]
[1745882886031,9.38960913,147.84,147.78,24.5]
[1745882886232,9.38960913,147.84,147.76,24.5]
[1745882886631,6.7635,147.82,147.79,6.7645]
[1745882888532,6.763,147.83,147.8,6.764]
[1745882889129,6.7634,147.82,147.79,6.7645]
[1745882890735,6.7634,147.82,147.8,6.7641]
[1745882892036,6.763,147.83,147.8,6.7641]
[1745882894234,6.7633,147.82,147.8,6.7641]
[1745882894941,6.7633,147.82,147.79,6.7644]
[1745882895141,6.7629,147.83,147.76,24.5]
[1745882895641,6.7629,147.83,147.8,6.7638]
[1745882895841,6.7632,147.82,147.8,6.7638]
[1745882896641,6.7632,147.83,147.8,6.7638]
[1745882900745,9.38960913,147.82,147.76,24.5]
[1745882901339,9.38960913,147.82,147.77,6.7652]
[1745882901340,6.764,147.81,147.77,6.7652]
[1745882901645,6.764,147.81,147.76,24.5]
[1745882901846,9.38960913,147.82,147.76,24.5]
[1745882902450,6.7638,147.81,147.76,24.5]
[1745882902851,4.0905,147.83,147.76,24.5]
[1745882903051,10.8535,147.83,147.79,6.7642]
[1745882903352,10.8535,147.83,147.76,24.5]
[1745882903848,10.8535,147.83,147.8,6.7641]
[1745882905550,6.7633,147.82,147.79,6.7644]
[1745882905853,6.7633,147.82,147.76,24.5]
[1745882907050,6.7633,147.82,147.8,6.7642]
[1745882909054,1.9939,147.84,147.76,33.88960913]
[1745882909561,8.7563,147.84,147.76,33.88960913]
[1745882911663,6.7628,147.83,147.8,6.7639]
[1745882912061,6.7628,147.83,147.76,33.88960913]
[1745882913258,6.7628,147.83,147.81,6.7636]
[1745882914366,8.7564,147.84,147.81,6.7636]
[1745882914963,6.7628,147.83,147.81,6.7636]
[1745882915459,12.75703499,147.83,147.81,6.7636]
[1745882916371,12.75703499,147.83,147.8,6.7641]
[1745882917062,12.75703499,147.83,147.81,6.7636]
[1745882918073,5.99423499,147.82,147.8,6.7641]
[1745882920370,5.99423499,147.82,147.78,5.99423499]
[1745882920976,5.99423499,147.82,147.8,6.7639]
[1745882921378,5.99423499,147.82,147.78,5.99423499]
[1745882921975,5.99423499,147.82,147.8,6.7638]
[1745882922178,5.99423499,147.82,147.78,5.99423499]
[1745882923879,5.99423499,147.82,147.81,6.7637]
[1745882924783,5.99423499,147.82,147.8,6.764]
[1745882925777,5.99423499,147.82,147.81,6.7637]
[1745882926081,5.99423499,147.82,147.78,5.99423499]
[1745882926680,5.99423499,147.82,147.8,6.7639]
[1745882931187,5.99423499,147.82,147.78,5.99423499]
[1745882931188,5.99423499,147.82,147.81,6.7637]
[1745882932687,5.99423499,147.83,147.81,6.7637]
[1745882933085,12.75703499,147.83,147.81,6.7637]
[1745882934990,5.99423499,147.83,147.81,6.7637]
[1745882935687,12.75713499,147.83,147.8,6.7638]
[1745882935989,5.99423499,147.83,147.78,5.99423499]
[1745882936183,5.99423499,147.83,147.81,6.7637]
[1745882938792,12.75703499,147.83,147.81,6.7637]
[1745882938993,5.99423499,147.82,147.78,24.5]
[1745882939292,5.99423499,147.81,147.78,24.5]
[1745882939592,5.99423499,147.81,147.79,6.7644]
[1745882941291,5.99423499,147.81,147.8,6.7642]
[1745882943898,5.99423499,147.81,147.79,6.7644]
[1745882944790,5.99423499,147.81,147.8,6.7642]
[1745882945096,5.99423499,147.81,147.78,24.5]
[1745882946290,5.99423499,147.81,147.79,6.7644]
[1745882946898,5.99423499,147.81,147.8,6.7642]
[1745882948501,5.99423499,147.83,147.81,6.7636]
[1745882951100,5.99423499,147.83,147.8,6.764]
[1745882951902,12.75713499,147.83,147.8,6.764]
[1745882952104,5.99423499,147.82,147.8,6.764]
[1745882952402,5.99423499,147.83,147.81,6.7637]
[1745882955303,12.75703499,147.83,147.8,6.764]
[1745882955603,5.99423499,147.83,147.8,6.764]
[1745882955797,5.99423499,147.83,147.79,5.99423499]
[1745882956707,5.99423499,147.83,147.81,6.7636]
[1745882957908,12.75713499,147.83,147.81,6.7636]
[1745882958208,12.75713499,147.83,147.8,6.764]
[1745882958408,5.99423499,147.83,147.79,5.99423499]
[1745882958709,5.99423499,147.83,147.81,6.7636]
[1745882959704,5.99423499,147.83,147.78,24.5]
[1745882959705,5.99423499,147.82,147.8,6.764]
[1745882962011,5.99423499,147.82,147.81,6.7637]
[1745882962311,5.99423499,147.82,147.78,30.49423499]
[1745882962705,5.99423499,147.82,147.8,6.7639]
[1745882964209,12.75733499,147.83,147.8,6.7639]
[1745882965316,12.75733499,147.83,147.81,6.7637]
[1745882965610,5.99423499,147.83,147.81,6.7637]
[1745882966208,12.75713499,147.83,147.8,6.764]
[1745882970918,5.99423499,147.81,147.78,24.5]
[1745882972311,12.75823499,147.81,147.78,31.2647]
[1745882972506,12.75823499,147.81,147.78,24.5]
[1745882973016,5.99423499,147.81,147.79,6.7645]
[1745882974214,12.75813499,147.81,147.79,6.7645]
[1745882974811,12.75813499,147.81,147.78,31.2649]
[1745882975014,5.99423499,147.79,147.78,24.5]
[1745882975210,5.99423499,147.79,147.76,6.7659]
[1745882975410,5.99423499,147.77,147.75,24.5]
[1745882978115,5.99423499,147.73,147.72,6.7676]
[1745882979417,5.99423499,147.73,147.68,24.5]
[1745882979618,5.99423499,147.71,147.68,24.5]
[1745882980416,5.99423499,147.7,147.68,24.5]
[1745882981121,5.99423499,147.69,147.68,31.2697]
[1745882981418,5.99423499,147.69,147.68,6.7697]
[1745882982318,5.99423499,147.69,147.65,511.32]
[1745882982619,5.99423499,147.68,147.65,24.5]
[1745882982819,5.99423499,147.67,147.65,24.5]
[1745882983620,5.99423499,147.67,147.65,6.7707]
[1745882984119,5.99423499,147.66,147.65,6.7707]
[1745882986724,5.99423499,147.67,147.65,6.7707]
[1745882987323,5.99423499,147.67,147.64,6.7713]
[1745882987621,5.99423499,147.66,147.64,6.7713]
[1745882988120,5.99423499,147.66,147.63,6.7716]
[1745882988322,5.99423499,147.65,147.62,24.5]
[1745882989121,5.99423499,147.65,147.63,6.7716]
[1745882989723,5.99423499,147.66,147.64,6.7715]
[1745882990121,12.76453499,147.67,147.64,6.7715]
[1745882990824,5.99423499,147.66,147.64,6.7715]
[1745882993824,5.99423499,147.65,147.64,6.7715]
[1745883007535,5.99423499,147.66,147.65,6.7706]
[1745883007730,5.99423499,147.67,147.63,5.99423499]
[1745883009137,5.99423499,147.66,147.62,30.49423499]
[1745883009434,5.99423499,147.65,147.62,24.5]
[1745883009838,5.99423499,147.65,147.63,6.7715]
[1745883010237,5.99423499,147.64,147.6,5.99423499]
[1745883010437,5.99423499,147.64,147.62,6.7721]
[1745883013141,5.99423499,147.64,147.63,6.7719]
[1745883013441,5.99423499,147.65,147.61,5.99423499]
[1745883013740,5.99423499,147.65,147.64,6.7715]
[1745883019546,5.99423499,147.66,147.65,6.7708]
[1745883021042,5.99423499,147.66,147.64,6.7713]
[1745883022347,5.99423499,147.65,147.64,6.7713]
[1745883023845,5.99423499,147.66,147.64,6.7713]
[1745883026351,5.99423499,147.65,147.64,6.7713]
[1745883027948,31.2898,147.68,147.65,6.771]
[1745883028154,5.99423499,147.67,147.63,5.99423499]
[1745883028455,30.51423499,147.68,147.66,6.7702]
[1745883028647,5.99423499,147.68,147.66,6.7702]
[1745883029152,5.99423499,147.7,147.68,6.7695]
[1745883029752,5.99423499,147.69,147.68,6.7695]
[1745883043068,5.99423499,147.7,147.69,6.7691]
[1745883045066,5.99423499,147.7,147.68,6.7696]
[1745883045263,24.5,147.74,147.69,5.99423499]
[1745883045467,5.99423499,147.74,147.7,5.99423499]
[1745883045670,5.99423499,147.74,147.72,6.7678]
[1745883045964,5.99423499,147.75,147.72,6.7678]
[1745883046671,5.99423499,147.74,147.72,6.7678]
[1745883046869,5.99423499,147.74,147.73,6.7674]
[1745883047369,5.99423499,147.74,147.72,6.7677]
[1745883049269,31.2661,147.76,147.72,6.7677]
[1745883049571,5.99423499,147.74,147.72,6.7677]
[1745883050377,5.99423499,147.73,147.67,30.49423499]
[1745883050563,5.99423499,147.71,147.67,30.49423499]
[1745883050766,5.99423499,147.72,147.69,6.7688]
[1745883057278,12.76213499,147.72,147.69,6.7688]
[1745883059773,5.99423499,147.72,147.7,6.7687]
[1745883061074,12.76213499,147.72,147.69,6.769]
[1745883061478,12.76213499,147.72,147.67,30.49423499]
[1745883062078,5.99423499,147.72,147.7,6.7687]
[1745883064971,12.76173499,147.73,147.7,6.7687]
[1745883065167,12.76173499,147.73,147.71,6.7682]
[1745883065568,5.99423499,147.75,147.72,6.7675]
[1745883066378,12.76073499,147.75,147.72,6.7675]
[1745883067781,5.99423499,147.73,147.69,5.99423499]
[1745883068281,5.99423499,147.73,147.71,6.7682]
[1745883069982,5.99423499,147.73,147.68,5.99423499]
[1745883070178,5.99423499,147.72,147.68,5.99423499]
[1745883070477,12.76213499,147.72,147.69,6.7689]
[1745883073384,5.99423499,147.72,147.7,6.7687]
[1745883073681,5.99423499,147.72,147.67,24.5]
[1745883073881,5.99423499,147.7,147.65,34.36593499]
[1745883074181,12.76323499,147.7,147.67,6.7698]
[1745883075984,6.7692,147.69,147.67,6.7698]
[1745883078486,12.76313499,147.7,147.67,6.7698]
[1745883078991,6.7709,147.66,147.6,879.63275999]
[1745883079275,24.48,147.75,147.64,5.99423499]
[1745883079488,5.99423499,147.71,147.67,5.99423499]
[1745883079980,12.76253499,147.71,147.67,5.99423499]
[1745883080290,5.99423499,147.7,147.66,5.99423499]
[1745883080478,5.99423499,147.7,147.66,12.76453499]
[1745883080784,12.76323499,147.7,147.66,6.7703]
[1745883081183,12.76323499,147.7,147.67,6.77]
[1745883081684,5.99423499,147.69,147.67,6.77]
[1745883085088,12.76343499,147.69,147.67,6.77]
[1745883085588,12.76343499,147.69,147.66,6.7704]
[1745883085883,5.99423499,147.67,147.62,24.48]
[1745883086190,5.99423499,147.65,147.62,24.48]
[1745883086386,5.99423499,147.65,147.63,6.7717]
[1745883087289,5.99423499,147.64,147.62,6.7722]
[1745883088187,12.76533499,147.65,147.62,6.7722]
[1745883095495,5.99423499,147.65,147.62,6.7722]
[1745883097794,5.99423499,147.66,147.62,5.99423499]
[1745883098001,37.24453499,147.67,147.62,5.99423499]
[1745883099295,37.24453499,147.67,147.64,6.7711]
[1745883099996,24.48,147.67,147.66,6.7706]
[1745883100197,5.99423499,147.68,147.66,6.7706]
[1745883100598,12.76393499,147.68,147.65,6.7708]
[1745883100899,5.99423499,147.67,147.65,6.7708]
[1745883101095,5.99423499,147.67,147.64,6.7712]
[1745883101299,5.99423499,147.67,147.59,24.48]
[1745883101499,5.99423499,147.66,147.62,5.99423499]
[1745883102700,5.99423499,147.67,147.64,6.7712]
[1745883103703,12.76453499,147.67,147.64,6.7712]
[1745883104003,5.99423499,147.67,147.63,6.7719]
[1745883104195,5.99423499,147.66,147.63,6.7719]
[1745883104799,12.76513499,147.66,147.63,6.7719]
[1745883111704,6.7709,147.66,147.63,6.7719]
[1745883114608,6.7703,147.67,147.64,6.7714]
[1745883114904,6.7703,147.67,147.63,5.99423499]
[1745883115207,6.7703,147.67,147.64,6.7715]
[1745883119613,12.76483499,147.66,147.63,6.7718]
[1745883121212,6.7706,147.66,147.64,6.7714]
[1745883121615,6.7718,147.64,147.58,3.9483]
[1745883121806,5.99423499,147.63,147.6,6.773]
[1745883122108,12.76603499,147.64,147.6,12.76723499]
[1745883122313,5.99423499,147.65,147.61,5.99423499]
[1745883122515,30.4753,147.7,147.63,5.99423499]
[1745883122713,5.99423499,147.68,147.64,5.99423499]
[1745883124412,12.76413499,147.68,147.65,6.7709]
[1745883125414,12.76413499,147.68,147.64,6.7714]
[1745883125415,6.7702,147.67,147.64,6.7714]
[1745883127016,12.76403499,147.68,147.65,6.771]
[1745883128214,6.7701,147.67,147.65,6.771]
[1745883128619,6.7701,147.67,147.64,12.76553499]
[1745883129017,6.7706,147.66,147.63,5.99423499]
[1745883129313,5.99423499,147.66,147.61,5.99423499]
[1745883129514,6.7714,147.65,147.61,5.99423499]
[1745883129707,6.7714,147.65,147.62,12.76633499]
[1745883130621,6.7717,147.64,147.61,12.76713499]
[1745883131017,5.99423499,147.66,147.61,12.76713499]
[1745883131421,6.7712,147.65,147.61,12.76713499]
[1745883131813,6.7712,147.65,147.62,6.7722]
[1745883132418,6.7712,147.65,147.62,12.76643499]
[1745883133418,12.76493499,147.66,147.63,6.7719]
[1745883135226,6.7712,147.65,147.62,12.76653499]
[1745883136922,12.76503499,147.66,147.62,12.76653499]
[1745883137924,6.7711,147.65,147.63,6.7719]
[1745883138124,5.99423499,147.66,147.63,6.7719]
[1745883138424,12.76503499,147.66,147.63,6.7719]
[1745883138725,30.4753,147.7,147.64,5.99423499]
[1745883139026,5.99423499,147.68,147.64,5.99423499]
[1745883139328,5.99423499,147.67,147.63,5.99423499]
[1745883139524,5.99423499,147.67,147.65,6.7708]
[1745883140323,12.76403499,147.68,147.65,6.7708]
[1745883142629,12.76403499,147.68,147.66,6.7704]
[1745883142929,12.76403499,147.68,147.64,5.99423499]
[1745883143426,12.76403499,147.68,147.65,6.7708]
[1745883147432,6.7702,147.67,147.65,6.7708]
[1745883148339,6.7707,147.66,147.63,6.7715]
[1745883148635,12.76493499,147.66,147.63,6.7715]
[1745883148835,5.99423499,147.68,147.63,5.99423499]
[1745883149534,6.7703,147.67,147.64,6.7712]
[1745883151330,24.48,147.7,147.66,5.99423499]
[1745883151539,5.99423499,147.72,147.67,5.99423499]
[1745883151732,4.64735647,147.71,147.67,5.99423499]
[1745883152028,4.64735647,147.7,147.67,5.99423499]
[1745883152337,5.99423499,147.72,147.67,5.99423499]
[1745883152537,4.64656482,147.71,147.67,5.99423499]
[1745883152736,5.99423499,147.72,147.67,5.99423499]
[1745883152933,4.64678211,147.71,147.67,5.99423499]
[1745883153134,5.99423499,147.72,147.67,5.99423499]
[1745883153333,11.41393758,147.71,147.68,6.7695]
[1745883153534,6.7686,147.71,147.68,6.7695]
[1745883159242,24.48,147.73,147.7,6.7687]
[1745883159441,24.48,147.73,147.7,5.99423499]
[1745883159636,5.99423499,147.75,147.7,5.99423499]
[1745883159938,6.767,147.74,147.71,6.768]
[1745883161039,6.7666,147.75,147.72,6.7677]
[1745883161240,6.69671502,147.75,147.72,6.7677]
[1745883161539,30.47423499,147.76,147.71,5.99423499]
[1745883161741,6.7669,147.74,147.71,12.76223499]
[1745883161942,6.7669,147.74,147.71,5.99423499]
[1745883162343,12.76083499,147.75,147.72,6.7678]
[1745883162739,24.48,147.76,147.72,5.99423499]
[1745883162945,24.48,147.76,147.73,6.767]
[1745883162946,31.2462,147.76,147.73,6.767]
[1745883163444,37.24043499,147.76,147.73,6.767]
[1745883164345,6.7665,147.75,147.72,12.76183499]
[1745883164644,30.47423499,147.76,147.72,5.99423499]
[1745883164942,37.24053499,147.76,147.73,6.7673]
[1745883165342,30.47423499,147.76,147.72,5.99423499]
[1745883165539,30.45423499,147.79,147.75,5.99423499]
[1745883165744,5.99423499,147.82,147.77,5.99423499]
[1745883165944,6.764,147.81,147.77,12.75943499]
[1745883166350,28.5786,147.83,147.78,5.99423499]
[1745883166551,34.57283499,147.83,147.78,12.75903499]
[1745883166751,34.57283499,147.83,147.78,5.99423499]
[1745883167552,6.7637,147.81,147.78,5.99423499]
[1745883168348,6.7642,147.8,147.78,5.99423499]
[1745883168555,6.7642,147.8,147.77,12.75943499]
[1745883169449,6.7642,147.8,147.77,6.7652]
[1745883170448,6.7642,147.8,147.75,9.36859731]
[1745883170449,6.7647,147.79,147.75,9.36859731]
[1745883172355,6.7647,147.79,147.76,6.766]
[1745883173254,6.7651,147.78,147.75,16.13489731]
[1745883173553,28.5786,147.83,147.75,16.13489731]
[1745883173856,6.7649,147.79,147.75,16.13489731]
[1745883174050,28.5786,147.83,147.73,13.52639731]
[1745883174051,9.36859731,147.82,147.73,13.52639731]
[1745883174356,6.7651,147.78,147.73,9.36859731]
[1745883174557,6.7651,147.78,147.74,6.7668]
[1745883174758,9.36859731,147.8,147.74,6.7668]
[1745883175153,9.36859731,147.82,147.75,6.7664]
[1745883176358,6.7651,147.78,147.75,6.7664]
[1745883181458,6.7648,147.79,147.75,6.7664]
[1745883181658,6.7648,147.79,147.76,6.766]
[1745883182163,6.7648,147.79,147.75,6.7663]
[1745883182349,6.7652,147.78,147.75,6.7663]
[1745883183456,6.7648,147.79,147.75,6.7663]
[1745883184059,6.7651,147.78,147.75,6.7663]
[1745883185064,6.7647,147.79,147.76,6.7659]
[1745883186163,6.7651,147.78,147.75,6.7663]
[1745883189465,6.7651,147.78,147.76,5.99719979]
[1745883190868,28.5786,147.83,147.77,5.99719979]
[1745883191163,5.99719979,147.81,147.77,5.99719979]
[1745883191365,6.7642,147.8,147.77,12.76249979]
[1745883192565,12.76139979,147.8,147.77,6.7653]
[1745883194167,5.99719979,147.8,147.76,12.76309979]
[1745883194469,5.99719979,147.79,147.76,6.7659]
[1745883194764,6.765,147.79,147.76,6.7659]
[1745883197070,6.765,147.79,147.76,12.76309979]
[1745883197474,6.765,147.79,147.77,6.7655]
[1745883198274,5.99719979,147.82,147.78,6.7649]
[1745883198870,6.7643,147.8,147.78,6.7649]
[1745883199067,6.7643,147.8,147.77,5.99719979]
[1745883200068,6.7643,147.8,147.77,12.76259979]
[1745883200973,6.7639,147.81,147.78,6.765]
[1745883201267,6.7639,147.81,147.78,5.99719979]
[1745883201469,12.76069979,147.82,147.79,6.7645]
[1745883201677,6.7635,147.82,147.79,12.76169979]
[1745883202173,6.7638,147.81,147.79,5.99719979]
[1745883203172,6.7638,147.81,147.79,12.76179979]
[1745883203373,6.7638,147.81,147.79,5.99719979]
[1745883204775,12.76059979,147.82,147.79,12.76179979]
[1745883204974,5.99719979,147.82,147.79,5.99719979]
[1745883205477,6.7639,147.81,147.78,12.76209979]
[1745883208479,6.7639,147.81,147.79,6.7646]
[1745883208780,12.76059979,147.82,147.79,6.7646]
[1745883208976,34.57579979,147.83,147.79,6.7646]
[1745883209482,6.7636,147.82,147.79,6.7646]
[1745883210885,6.7637,147.81,147.79,6.7646]
[1745883212082,6.7637,147.81,147.78,12.76219979]
[1745883213081,6.7637,147.81,147.79,6.7646]
[1745883216378,24.46,147.83,147.79,5.99719979]
[1745883216582,24.44,147.86,147.82,5.99719979]
[1745883216781,24.44,147.86,147.83,5.99719979]
[1745883217182,31.2017,147.86,147.83,12.75969979]
[1745883217581,24.44,147.86,147.83,5.99719979]
[1745883217787,5.99719979,147.85,147.8,30.43719979]
[1745883218088,5.99719979,147.84,147.8,30.43719979]
[1745883218288,6.7631,147.83,147.8,24.44]
[1745883219086,6.7633,147.82,147.8,24.44]
[1745883220288,6.7637,147.81,147.8,24.44]
[1745883220486,5.99719979,147.84,147.8,24.44]
[1745883220687,5.99719979,147.84,147.79,12.76159979]
[1745883220984,6.7634,147.82,147.79,12.76159979]
[1745883221590,6.763,147.83,147.8,6.7639]
[1745883221886,5.99719979,147.85,147.81,5.99719979]
[1745883222089,6.7626,147.84,147.81,5.99719979]
[1745883222684,30.41719979,147.87,147.83,5.99719979]
[1745883222884,24.42,147.87,147.83,5.99719979]
[1745883223091,24.42,147.9,147.86,5.99719979]
[1745883223291,24.42,147.9,147.87,5.99719979]
[1745883223791,31.18,147.9,147.87,12.75809979]
[1745883224193,31.18,147.9,147.86,5.99719979]
[1745883224393,31.18,147.9,147.86,12.75839979]
[1745883225290,24.42,147.9,147.86,5.99719979]
[1745883225692,24.42,147.9,147.87,5.99719979]
[1745883226395,31.1797,147.9,147.87,6.7609]
[1745883227498,6.7601,147.89,147.86,12.75849979]
[1745883227698,6.7601,147.89,147.85,5.99719979]
[1745883228198,24.42,147.9,147.86,5.99719979]
[1745883228498,5.99719979,147.91,147.86,5.99719979]
[1745883228798,12.75659979,147.91,147.87,5.99719979]
[1745883229400,6.7594,147.91,147.85,24.42]
[1745883229591,6.7594,147.91,147.87,5.99719979]
[1745883230807,6.7594,147.91,147.88,6.7604]
[1745883234602,6.7588,147.92,147.89,6.76]
[1745883234807,24.42,147.93,147.87,9.3554746]
[1745883236402,6.7588,147.92,147.89,6.7598]
[1745883237609,6.7592,147.91,147.88,6.7604]
[1745883241210,6.7588,147.92,147.89,6.76]
[1745883241707,24.42,147.93,147.87,9.3554746]
[1745883241910,6.7592,147.91,147.87,9.3554746]
[1745883242610,6.7592,147.91,147.88,6.7602]
[1745883243008,6.7588,147.92,147.87,9.3554746]
[1745883243309,6.7588,147.92,147.89,6.7599]
[1745883245306,24.4,148.0,147.9,9.3554746]
[1745883245511,24.4,148.0,147.92,9.3554746]
[1745883245712,6.7556,147.99,147.92,9.3554746]
[1745883245913,24.4,148.0,147.94,9.3554746]
[1745883246309,24.4,148.0,147.96,6.7565]
[1745883246915,33.7554746,148.0,147.92,9.3554746]
[1745883247213,33.7554746,148.0,147.91,24.4]
[1745883247616,9.3554746,147.98,147.91,24.4]
[1745883248517,6.7567,147.97,147.93,6.7579]
[1745883250106,9.3554746,147.98,147.92,6.7585]
[1745883250604,6.7571,147.96,147.92,6.7585]
[1745883251414,6.7571,147.96,147.91,24.4]
[1745883251415,6.7571,147.96,147.93,6.7582]
[1745883252516,6.7567,147.97,147.93,6.7582]
[1745883253417,6.7567,147.97,147.94,6.7577]
[1745883253613,16.1115746,147.98,147.91,24.4]
[1745883254118,40.5106746,148.0,147.92,9.3554746]
[1745883254414,24.4,148.0,147.92,9.3554746]
[1745883254718,24.4,148.0,147.94,9.3554746]
[1745883255217,31.1552,148.0,147.97,6.7563]
[1745883256419,24.4,148.0,147.92,9.3554746]
[1745883256918,24.4,148.0,147.97,6.7561]